{"text_format":"1","workbook":"xlsx","n_sheets":23,"sheets":["Riskk","Login","Main","Form","CheckList","ETF1","ETF2","ETF3","InPortfolio","ETF4","ETF5","ETF6","ETF7","ETF8","InPort","InPos","InTran","InPricing","InIndex","InTWRR","InFund","InTranReg","InAccByFundHst"],"not_rendered":{"charts":0,"images":47,"macros":1,"external_links":0,"defined_names":90,"comments":0,"pivot_tables":4},"unopened":[],"bounds":{"document_bytes":16777216,"sheet_cells":100000,"rows_first":2000,"rows_last":500,"rows_between":2000,"halvings":0,"cell_chars":16384,"cell_head_chars":4096},"cells_cut":0,"cells_raw":0,"read":"whole","date_system":"1900"}

{"sheet":"Riskk","index":0,"n_rows":5,"n_cols":11,"rows_kept":5,"cut":false,"hidden":true,"merged":[]}
["linda","UPSW",null,null,null,null,null,{"$f":"COUNT(H3:H20)","v":0},false]
[null,"Userid",null,null,null,null,null,"Main/sub","Caption","On Action","NewGroup"]
[3,"UserLevel"]
["2006-05-09T11:19:39","LoginTime"]
[null,"LogoutTime"]

{"sheet":"Login","index":1,"n_rows":18,"n_cols":10,"rows_kept":18,"cut":false,"hidden":true,"merged":[]}
[]
[null,"Riskk",null,null,null,null,null,"Box 389, Lot 7.16, Wisma Central, Jln Ampang, 50450 Kuala Lumpur"]
[null,"Sdn Bhd (CN 388306K)"]
[]
[]
[]
[]
[]
[null,"SC REPORT"]
[]
[]
[]
[]
[]
[]
[]
[]
[null,null,null,null,null,null,null,null,null,"`"]

{"sheet":"Main","index":2,"n_rows":24,"n_cols":11,"rows_kept":24,"cut":false,"hidden":false,"merged":[]}
["Riskk ",null,null,"Box 389, Lot 7.16, Wisma Central, Jln Ampang, 50450 Kuala Lumpur"]
["Sdn Bhd (CN 388306K)"]
[]
[]
[null,"Report Detail",null,null,null,null,null,null,null,"Sheet","Print"]
[null,"Company  :","i-VCAP Management Sdn Bhd",null,null,null,null,null,null,"UTFMain","YES"]
[null,"Fund  :","KFHICASH",null,null,null,null,null,null,"UTFList","YES"]
[null,"Fund Name  :",{"$f":"VLOOKUP(FundCode,InFund!$A:$D,2,0)","v":"KFH iCash Investment Fund"},null,null,null,null,null,null,"UTF1","YES"]
[null,"Fund Prefix :",{"$f":"VLOOKUP(FundCode,InFund!$A:$G,7,0)","v":"KICASH"},null,null,null,null,null,null,"UTF2A","YES"]
[null,"Inception Date  :",{"$f":"VLOOKUP(FundCode,InFund!$A:$D,3,0)","v":"2013-08-23"},null,null,null,null,null,null,"UTF2B","YES"]
[null,"Start Of Year  :",{"$f":"EOMONTH(EOM,-MONTH(EOM))+1","v":"2013-01-01"},null,null,null,null,null,null,"UTF2C","YES"]
[null,"End of Last Month  :",{"$f":"EOMONTH(C13,-1)","v":"2013-07-31"},null,null,null,null,null,null,"UTF2D","YES"]
[null,"Report As At  :","2013-08-31",null,null,null,null,null,null,"UTF2E","YES"]
[null,"Index Bench Mark  :",{"$f":"VLOOKUP(FundCode,InFund!$A:$E,5,0)","v":"KFHGIA"},null,null,null,null,null,null,"UTF2F","YES"]
[null,"Fund Currency :",{"$f":"VLOOKUP(FundCode,InFund!$A:$F,6,0)","v":"MYR"},null,null,null,null,null,null,"UTF2G","YES"]
[null,null,null,null,null,null,null,null,null,"UTF2H","YES"]
[null,null,null,null,null,null,null,null,null,"UTF3A","YES"]
[null,"Current Date :",{"$f":"TEXT(NOW(),\"DD-MMM-YY\")","v":"17-Jun-14"},null,null,null,null,null,null,"UTF3B","YES"]
[null,"Current Time :",{"$f":"TEXT(NOW(),\"HH:MM:SS\")","v":"15:05:57"},null,null,null,null,null,null,"UTF3C","YES"]
[null,"Company ID:","IV",null,null,null,null,null,null,"UTF3D","YES"]
[null,"Current User :",null,null,null,null,null,null,null,"UTF4A","YES"]
[null,null,null,null,null,null,null,null,null,"UTF5","YES"]
[null,null,null,null,null,null,null,null,null,"UTF6","YES"]
[null,null,null,null,null,null,null,null,null,"UTF7","YES"]

{"sheet":"Form","index":3,"n_rows":32,"n_cols":9,"rows_kept":32,"cut":false,"hidden":false,"merged":[[12,6,12,8],[10,6,10,8],[15,3,15,6],[15,7,15,8],[27,3,27,6],[11,6,11,8],[1,3,1,8],[2,3,2,8],[4,3,4,8],[6,3,6,8],[9,6,9,8]]}
[]
[null,null,null,"SECURITIES COMMISSION\n\n "]
[null,null,null,"ETF RETURNS"]
[]
[null,null,null,"DECLARATION/VERIFICATION FORM"]
[{"$f":"EDATE(EOM,0)","v":"2013-08-31"}]
[null,null,null,{"$f":"\"For Quarter Ended \" & TEXT(EOM,\"MMMM yyyy\")","v":"For Quarter Ended August 2013"}]
[]
[]
[null,null,null,"Management Company ",null,":",{"$f":" CompanyName","v":"i-VCAP Management Sdn Bhd"}]
[null,null,null,"Trustee",null,":"]
[null,null,null,"Fund (s)",null,":",{"$f":" FundName","v":"KFH iCash Investment Fund"}]
[]
[null,null,null,"Management Company Declaration",null,null,null,"Trustee Verification"]
[]
[null,null,null,"1. The attached returns are complete, true and accurate to the best of my knowledge and belief.",null,null,null,"1. The attached returns are complete, true and accurate to the best of my knowledge and belief."]
[]
[]
[]
[null,null,null,"Signature ",":",null,null,"Signature ",":"]
[null,null,null,"Name",":",null,null,"Name",":"]
[null,null,null,"Designation",":",null,null,"Designation",":"]
[null,null,null,"Date",":",null,null,"Date",":"]
[]
[]
[null,null,null,"Declaration of the Designated Person responsible for all compliance matters"]
[]
[null,null,null,"1. The attached returns are complete, true and accurate to the best of my knowledge and belief.\n"]
[]
[]
[null,null,null,"Signature ",":",null,null,"Signature ",":"]
[null,null,null,"Date",":",null,null,"Date",":"]

{"sheet":"CheckList","index":4,"n_rows":24,"n_cols":7,"rows_kept":24,"cut":false,"hidden":false,"merged":[[11,6,11,8],[12,6,12,8],[6,3,6,8],[1,3,1,8],[2,3,2,8],[4,3,4,8],[9,6,9,8]]}
[]
[null,null,null,"SECURITIES COMMISSION\n\n "]
[null,null,null,"ETF RETURNS"]
[]
[null,null,null,"CHECKLIST"]
[{"$f":"EDATE(EOM,0)","v":"2013-08-31"}]
[null,null,null,{"$f":"\"For Quarter Ended \" & TEXT(EOM,\"MMMM yyyy\")","v":"For Quarter Ended August 2013"}]
[]
[]
[null,null,null,"Management Company ",null,":",{"$f":" CompanyName","v":"i-VCAP Management Sdn Bhd"}]
[]
[null,null,null,"Fund ",null,":",{"$f":" FundName","v":"KFH iCash Investment Fund"}]
[]
[null,null,null,null,null,null,"ETF STATISTICAL RETURNS"]
[null,null,null,"ETF 1","Weightings of Index Constituents"]
[null,null,null,"ETF 2","Market Capitalisation and Trading Volume"]
[null,null,null,"ETF 3","Profile of Unit Holders "]
[null,null,null,"ETF 4","Creation And Redemption"]
[null,null,null,"ETF 5","Investment Portfolio"]
[]
[null,null,null,null,null,null,"ETF COMPLIANCE RETURNS"]
[null,null,null,"ETF 6","Investment in OTC Derivatives of a Single Counter-party"]
[null,null,null,"ETF 7","Investments in Units/Shares of a Single Collective Investment Scheme"]
[null,null,null,"ETF 8","Investments in Structured Products of a Single Counter-party"]

{"sheet":"ETF1","index":5,"n_rows":12,"n_cols":7,"rows_kept":12,"cut":false,"hidden":false,"merged":[[1,3,1,6],[10,5,10,6],[7,5,7,6],[8,5,8,6],[9,5,9,6],[2,3,2,6],[4,3,4,6]]}
[null,null,null,null,null,null,"ETF 1"]
[null,null,null,"SECURITIES COMMISSION\n\n "]
[null,null,null,"ETF RETURNS"]
[]
[null,null,null,"WEIGHTINGS OF INDEX CONSTITUENTS"]
[{"$f":"EDATE(EOM,0)","v":"2013-08-31"}]
[]
[null,null,null,"Management Company ",":",{"$f":" CompanyName","v":"i-VCAP Management Sdn Bhd"}]
[null,null,null,"Name of Fund ",":",{"$f":" FundName","v":"KFH iCash Investment Fund"}]
[null,null,null,"Quarter Ended",":",{"$f":"TEXT(EOM,\"MMMM yyyy\")","v":"August 2013"}]
[null,null,"2007-06-12","Benchmark Index",":"]
[null,null,null,"Constituents",null,"Weighting of constituents (%)","Weighting against NAV (%)"]

{"sheet":"ETF2","index":6,"n_rows":13,"n_cols":10,"rows_kept":13,"cut":false,"hidden":false,"merged":[[1,3,1,9],[3,3,3,9],[4,3,4,9],[2,3,2,9]]}
[null,null,null,null,null,null,null,null,null,"ETF 2"]
[null,null,null,"SECURITIES COMMISSION"]
[null,null,null,"ETF RETURNS"]
[]
[null,null,null,"MARKET CAPITALISATION AND TRADING VOLUME "]
[{"$f":"EDATE(EOM,0)","v":"2013-08-31"}]
[]
[null,null,null,"Management Company ",null,":",{"$f":"CompanyName","v":"i-VCAP Management Sdn Bhd"}]
[null,null,null,"Name of Fund",null,":",{"$f":"FundName","v":"KFH iCash Investment Fund"}]
[null,null,null,"Quarter Ended",null,":",{"$f":"TEXT(EOM, \"Mmmm yyyy\")","v":"August 2013"}]
[null,null,"2007-06-12"]
[null,null,null,"No. of units listed ",null,"Lowest Traded Price ","Highest Traded Price ","Closing Market Price * ","Average Trading Volume ","Market Capitalisation * "]
[null,null,null,"('000 units)",null,"(RM per unit)","(RM per unit)","(RM per unit)"]

{"sheet":"ETF3","index":7,"n_rows":16,"n_cols":14,"rows_kept":16,"cut":false,"hidden":false,"merged":[[1,3,1,7],[4,3,4,7],[2,3,2,7]]}
[null,null,null,null,null,null,null,"ETF 3"]
[null,null,null,"SECURITIES COMMISSION"]
[null,null,null,"ETF RETURNS"]
[]
[null,null,null,"PROFILE OF UNIT HOLDERS"]
[{"$f":"EDATE(EOM,0)","v":"2013-08-31"}]
[]
[null,null,null,"Management Company ",":",{"$f":"CompanyName","v":"i-VCAP Management Sdn Bhd"}]
[null,null,null,"Name of Fund",":",{"$f":" FundName","v":"KFH iCash Investment Fund"}]
[null,null,null,"Quarter Ended",":",{"$f":"TEXT(EOM,\"Mmmm yyyy\")","v":"August 2013"}]
[null,null,"2007-06-12",null,null,null,null,null,null,null,"category","(All)"]
[null,null,null,"Category of Unit Holders",null,"No of Unit Holders","No. of Units Held","Percentage of holdings"]
[null,null,null,null,null,null,"('000 units)",null,null,null,"Row Labels","Sum of amt","Count of number","Sum of unit"]
[null,null,null,{"$f":"IF(K14=\"\",\"\",K14)","v":"IntRLP"},null,{"$f":"IF(L14=\"\",\"\",L14)","v":0},{"$f":"IF(M14=\"\",\"\",M14)","v":1},{"$f":"IF(N14=\"\",\"\",N14)","v":0},null,null,"IntRLP",0,1,0]
[null,null,null,{"$f":"IF(K15=\"\",\"\",K15)","v":"IUTAInst"},null,{"$f":"IF(L15=\"\",\"\",L15)","v":-29.421500000000002},{"$f":"IF(M15=\"\",\"\",M15)","v":1},{"$f":"IF(N15=\"\",\"\",N15)","v":0},null,null,"IUTAInst",-29.421500000000002,1,0]
[null,null,null,"Total",null,{"$f":"IF(L16=\"\",\"\",L16)","v":-29.421500000000002},{"$f":"IF(M16=\"\",\"\",M16)","v":2},{"$f":"IF(N16=\"\",\"\",N16)","v":0},null,null,"Grand Total",-29.421500000000002,2,0]

{"sheet":"InPortfolio","index":8,"n_rows":22,"n_cols":122,"rows_kept":22,"cut":false,"hidden":true,"merged":[]}
["Class","qFundCode","qStockCode","UnitFaceValue","MarketValueSC","MarketValueFC","ExchangeRate","MaturityDateCSH","CostFC","CostSC","AccruedInterestFC","AccruedInterestSC","UnrealisedGainsStock","UnrealisedGainsExchg","PriceCurr","FundName","FundCurrency","MaxTenor","qCompanyID","StockName","StockCurrency","qAssetClass","SectorName","CurrencyName","Exchange","IslamicFlag","IssuerName","IssuerGrpName","qStockType","Board","qBondType","BndDesc","StockTypeDesc","qManagerCode","qCountryID","FreezeUnit","FundDesc","RatingUsed","NAV","ExchgName","qCshType","CshTypeDesc","UTFlag","qKLSESector","ValuationMethod","qRptSequence","fPercNAV","PurchaseYTM","PurchaseDate","MarketValueDate","BookValue","ValueYTM","ValGains","PreAcqSC","PreAcqFC","FundGrpName","LastMarketValue","Rating","Term","Term","Term","Term","Term","Term","Term","Term","Term","Term","Term","Term","Term","Term","Term","Term","Term","Term","Term","Term","Term","Term","Term","Term","Term","Term","Term","Term","Term","Term","Term","Term","Term","Term","Term","Term","Term","Term","Term","Term","Term","Term","Term","Term","Term","Term","Term","Term","Term","Term","Term","Term","Term","Term","Term","Term","Term","Term","Term","Term","Term","Term","Term","Term"]
["Cash And Equivalent","KFHICASH","TradeDrVal",0,0,0,1,401769,0,0,0,0,0,0,0,"KFH iCash Investment Fund","MYR",365,"KF","","MYR","TBI","",null,"",null,null,null,null,null,null,null,"","MohdZul",null,null,"KFH iCash Investment Fund",null,0,null,null,null,1,null,0,5,0,0,401769,401769,0,0,0,0,0,"KFH iCash Investment Fuund",0]
["Cash And Equivalent","KFHICASH","TradeCrVal",0,0,0,1,401769,0,0,0,0,0,0,0,"KFH iCash Investment Fund","MYR",365,"KF","","MYR","TBI","",null,"",null,null,null,null,null,null,null,"","MohdZul",null,null,"KFH iCash Investment Fund",null,0,null,null,null,1,null,0,5,0,0,401769,401769,0,0,0,0,0,"KFH iCash Investment Fuund",0]
["Cash And Equivalent","KFHICASH","MngDb",0,0,0,1,401769,0,0,0,0,0,0,0,"KFH iCash Investment Fund","MYR",365,"KF","","MYR","TBI","",null,"",null,null,null,null,null,null,null,"","MohdZul",null,null,"KFH iCash Investment Fund",null,0,null,null,null,1,null,0,5,0,0,401769,401769,0,0,0,0,0,"KFH iCash Investment Fuund",0]
["Cash And Equivalent","KFHICASH","MngCr",0,0,0,1,401769,0,0,0,0,0,0,0,"KFH iCash Investment Fund","MYR",365,"KF","","MYR","TBI","",null,"",null,null,null,null,null,null,null,"","MohdZul",null,null,"KFH iCash Investment Fund",null,0,null,null,null,1,null,0,5,0,0,401769,401769,0,0,0,0,0,"KFH iCash Investment Fuund",0]
["Cash And Equivalent","KFHICASH","DivVal",0,0,0,1,401769,0,0,0,0,0,0,0,"KFH iCash Investment Fund","MYR",365,"KF","","MYR","TBI","",null,"",null,null,null,null,null,null,null,"","MohdZul",null,null,"KFH iCash Investment Fund",null,0,null,null,null,1,null,0,5,0,0,401769,401769,0,0,0,0,0,"KFH iCash Investment Fuund",0]
["Cash And Equivalent","KFHICASH","DivTaxRec",0,0,0,1,401769,0,0,0,0,0,0,0,"KFH iCash Investment Fund","MYR",365,"KF","","MYR","TBI","",null,"",null,null,null,null,null,null,null,"","MohdZul",null,null,"KFH iCash Investment Fund",null,0,null,null,null,1,null,0,5,0,0,401769,401769,0,0,0,0,0,"KFH iCash Investment Fuund",0]
["Cash And Equivalent","KFHICASH","OtherDbVal",0,0,0,1,401769,0,0,0,0,0,0,0,"KFH iCash Investment Fund","MYR",365,"KF","","MYR","TBI","",null,"",null,null,null,null,null,null,null,"","MohdZul",null,null,"KFH iCash Investment Fund",null,0,null,null,null,1,null,0,5,0,0,401769,401769,0,0,0,0,0,"KFH iCash Investment Fuund",0]
["Cash And Equivalent","KFHICASH","OtherCrVal",0,-7000,-7000,1,401769,-7000,0,0,0,0,0,0,"KFH iCash Investment Fund","MYR",365,"KF","","MYR","TBI","",null,"",null,null,null,null,null,null,null,"","MohdZul",null,null,"KFH iCash Investment Fund",null,0,null,null,null,1,null,0,5,0,0,401769,401769,0,0,0,0,0,"KFH iCash Investment Fuund",0]
["Cash And Equivalent","KFHICASH","TaxProvVal",0,0,0,1,401769,0,0,0,0,0,0,0,"KFH iCash Investment Fund","MYR",365,"KF","","MYR","TBI","",null,"",null,null,null,null,null,null,null,"","MohdZul",null,null,"KFH iCash Investment Fund",null,0,null,null,null,1,null,0,5,0,0,401769,401769,0,0,0,0,0,"KFH iCash Investment Fuund",0]
["Cash And Equivalent","KFHICASH","DefTaxProvVal",0,0,0,1,401769,0,0,0,0,0,0,0,"KFH iCash Investment Fund","MYR",365,"KF","","MYR","TBI","",null,"",null,null,null,null,null,null,null,"","MohdZul",null,null,"KFH iCash Investment Fund",null,0,null,null,null,1,null,0,5,0,0,401769,401769,0,0,0,0,0,"KFH iCash Investment Fuund",0]
["Cash And Equivalent","KFHICASH","ProvDistVal",0,0,0,1,401769,0,0,0,0,0,0,0,"KFH iCash Investment Fund","MYR",365,"KF","","MYR","TBI","",null,"",null,null,null,null,null,null,null,"","MohdZul",null,null,"KFH iCash Investment Fund",null,0,null,null,null,1,null,0,5,0,0,401769,401769,0,0,0,0,0,"KFH iCash Investment Fuund",0]
["Cash And Equivalent","KFHICASH","MngFee_BF",0,-2259.96,-2259.96,1,401769,-2259.96,0,0,0,0,0,0,"KFH iCash Investment Fund","MYR",365,"KF","","MYR","TBI","",null,"",null,null,null,null,null,null,null,"","MohdZul",null,null,"KFH iCash Investment Fund",null,0,null,null,null,1,null,0,5,0,0,401769,401769,0,0,0,0,0,"KFH iCash Investment Fuund",0]
["Cash And Equivalent","KFHICASH","MngFeeRebate_BF",0,0,0,1,401769,0,0,0,0,0,0,0,"KFH iCash Investment Fund","MYR",365,"KF","","MYR","TBI","",null,"",null,null,null,null,null,null,null,"","MohdZul",null,null,"KFH iCash Investment Fund",null,0,null,null,null,1,null,0,5,0,0,401769,401769,0,0,0,0,0,"KFH iCash Investment Fuund",0]
["Cash And Equivalent","KFHICASH","TrusteeFee_BF",0,-223.32,-223.32,1,401769,-223.32,0,0,0,0,0,0,"KFH iCash Investment Fund","MYR",365,"KF","","MYR","TBI","",null,"",null,null,null,null,null,null,null,"","MohdZul",null,null,"KFH iCash Investment Fund",null,0,null,null,null,1,null,0,5,0,0,401769,401769,0,0,0,0,0,"KFH iCash Investment Fuund",0]
["Cash And Equivalent","KFHICASH","AuditorFee_BF",0,-137,-137,1,401769,-137,0,0,0,0,0,0,"KFH iCash Investment Fund","MYR",365,"KF","","MYR","TBI","",null,"",null,null,null,null,null,null,null,"","MohdZul",null,null,"KFH iCash Investment Fund",null,0,null,null,null,1,null,0,5,0,0,401769,401769,0,0,0,0,0,"KFH iCash Investment Fuund",0]
["Cash And Equivalent","KFHICASH","CustodianFee_BF",0,0,0,1,401769,0,0,0,0,0,0,0,"KFH iCash Investment Fund","MYR",365,"KF","","MYR","TBI","",null,"",null,null,null,null,null,null,null,"","MohdZul",null,null,"KFH iCash Investment Fund",null,0,null,null,null,1,null,0,5,0,0,401769,401769,0,0,0,0,0,"KFH iCash Investment Fuund",0]
["Cash And Equivalent","KFHICASH","BrokerageFee_BF",0,0,0,1,401769,0,0,0,0,0,0,0,"KFH iCash Investment Fund","MYR",365,"KF","","MYR","TBI","",null,"",null,null,null,null,null,null,null,"","MohdZul",null,null,"KFH iCash Investment Fund",null,0,null,null,null,1,null,0,5,0,0,401769,401769,0,0,0,0,0,"KFH iCash Investment Fuund",0]
["Cash And Equivalent","KFHICASH","OthVal",0,0,0,1,401769,0,0,0,0,0,0,0,"KFH iCash Investment Fund","MYR",365,"KF","","MYR","TBI","",null,"",null,null,null,null,null,null,null,"","MohdZul",null,null,"KFH iCash Investment Fund",null,0,null,null,null,1,null,0,5,0,0,401769,401769,0,0,0,0,0,"KFH iCash Investment Fuund",0]
["Cash And Equivalent","KFHICASH","TaxVal",0,0,0,1,401769,0,0,0,0,0,0,0,"KFH iCash Investment Fund","MYR",365,"KF","","MYR","TBI","",null,"",null,null,null,null,null,null,null,"","MohdZul",null,null,"KFH iCash Investment Fund",null,0,null,null,null,1,null,0,5,0,0,401769,401769,0,0,0,0,0,"KFH iCash Investment Fuund",0]
["Cash And Equivalent","KFHICASH","BankVal",0,9620.2800000000007,9620.2800000000007,1,401769,9620.2800000000007,0,0,0,0,0,0,"KFH iCash Investment Fund","MYR",365,"KF","","MYR","TBI","",null,"",null,null,null,null,null,null,null,"","MohdZul",null,null,"KFH iCash Investment Fund",null,0,null,null,null,1,null,0,5,0,0,401769,401769,0,0,0,0,0,"KFH iCash Investment Fuund",0]
["Cash And Equivalent","KFHICASH","BankVal-FX",0,0,0,1,401769,0,0,0,0,0,0,0,"KFH iCash Investment Fund","MYR",365,"KF","","MYR","TBI","",null,"",null,null,null,null,null,null,null,"","MohdZul",null,null,"KFH iCash Investment Fund",null,0,null,null,null,1,null,0,5,0,0,401769,401769,0,0,0,0,0,"KFH iCash Investment Fuund",0]

{"sheet":"ETF4","index":9,"n_rows":14,"n_cols":9,"rows_kept":14,"cut":false,"hidden":false,"merged":[[1,3,1,8],[4,3,4,8],[2,3,2,8],[11,3,11,4],[11,5,11,6],[11,7,11,8]]}
[]
[null,null,null,"SECURITIES COMMISSION"]
[null,null,null,"ETF RETURNS"]
[]
[null,null,null,"CREATION AND REDEMPTION"]
[{"$f":"EDATE(EOM,0)","v":"2013-08-31"}]
[]
[null,null,null,"Management Company ",null,{"$f":"CompanyName","v":"i-VCAP Management Sdn Bhd"}]
[null,null,null,"Name of Fund ",null,{"$f":"FundName","v":"KFH iCash Investment Fund"}]
[null,null,null,"Quarter Ended",null,{"$f":"TEXT(EOM,\"mmmm yyyy\")","v":"August 2013"}]
[null,null,"2007-06-12"]
[null,null,null,"Creation",null,"Redemption",null,"Net Creation/(Redemption)"]
[null,null,null,"RM'000","000 units","RM'000","000 units","RM'000","000 units"]
[null,null,null,{"$f":"SUMIF(InTranReg!D:D,\"UP\",InTranReg!B:B)","v":81500},{"$f":"SUMIF(InTranReg!D:D,\"UP\",InTranReg!C:C)","v":81500},{"$f":"SUMIF(InTranReg!D:D,\"UR\",InTranReg!B:B)","v":-81529.421499999997},{"$f":"SUMIF(InTranReg!D:D,\"UR\",InTranReg!C:C)","v":-81500},{"$f":"D14+F14","v":-29.42149999999674},{"$f":"E14+G14","v":0}]

{"sheet":"ETF5","index":10,"n_rows":49,"n_cols":6,"rows_kept":49,"cut":false,"hidden":false,"merged":[[10,3,10,4],[1,3,1,5],[4,3,4,5],[2,3,2,5]]}
[null,null,null,null,null,"ETF 5"]
[null,null,null,"SECURITIES COMMISSION"]
[null,null,null,"ETF RETURNS"]
[]
[null,null,null,"INVESTMENT PORTFOLIO"]
[{"$f":"EDATE(EOM,0)","v":"2013-08-31"}]
[]
[null,null,null,"Management Company ",{"$f":"\": \" & CompanyName","v":": i-VCAP Management Sdn Bhd"}]
[null,null,null,"Name of Fund",{"$f":"\": \" & FundName","v":": KFH iCash Investment Fund"}]
[null,null,null,"Quarter Ended",{"$f":"\": \" & TEXT(EOM,\"mmmm yyyy\")","v":": August 2013"}]
[null,null,null,"Types of Investments",null,"Market Value (RM'000)"]
[null,null,null,"INVESTMENTS IN LOCAL MARKET"]
[]
[null,null,null,"Listed shares"]
[null,null,null,"Debentures"]
[null,null,null,"Warrants"]
[null,null,null,"Derivatives"]
[null,null,null,"Collective investment scheme"]
[null,null,null,"Structured products"]
[null,null,null,"Total Investments in Local Market"]
[null,null,null,"INVESTMENTS IN FOREIGN MARKET"]
[]
[null,null,null,"Listed shares"]
[null,null,null,"Debentures"]
[null,null,null,"Warrants"]
[null,null,null,"Derivatives"]
[null,null,null,"Collective investment scheme"]
[null,null,null,"Structured products"]
[null,null,null,"Total Investments in Foreign Market"]
[]
[null,null,null,"Cash"]
[null,null,null,"Deposits with financial institutions"]
[null,null,null,"Money-market instruments"]
[null,null,null,"Total Liquid Assets"]
[null,null,null,"Other Assets"]
[null,null,null,"Other Assets Remarks"]
[]
[null,null,null,"Total Asset Value"]
[null,null,null,"Less: Liabilities"]
[null,null,null,"NET ASSET VALUE (NAV)"]
[]
[null,null,null,"UNIT HOLDER'S FUNDS",null,"(RM'000)"]
[]
[null,null,null,{"$f":"\"- Unit holders' capital\"","v":"- Unit holders' capital"}]
[null,null,null,{"$f":"\"- Undistributed income/realised reserve\"","v":"- Undistributed income/realised reserve"}]
[null,null,null,{"$f":"\"- Investment flunctuation reserve/realised reserve\"","v":"- Investment flunctuation reserve/realised reserve"}]
[null,null,null,{"$f":"\"- Other reserves\"","v":"- Other reserves"}]
[]
[null,null,null,"TOTAL UNIT HOLDERS' FUNDS"]

{"sheet":"ETF6","index":11,"n_rows":18,"n_cols":14,"rows_kept":18,"cut":false,"hidden":false,"merged":[[1,3,1,6],[4,3,4,6],[2,3,2,6]]}
[null,null,null,null,null,null,"ETF 6"]
[null,null,null,"SECURITIES COMMISSION"]
[null,null,null,"ETF RETURNS"]
[]
[null,null,null,{"$f":"UPPER(\"Investments in OTC DerivativeS of a Single Counter-Party\")","v":"INVESTMENTS IN OTC DERIVATIVES OF A SINGLE COUNTER-PARTY"}]
[{"$f":"EDATE(EOM,0)","v":"2013-08-31"}]
[]
[null,null,null,"Management Company ",":",{"$f":" CompanyName","v":"i-VCAP Management Sdn Bhd"}]
[null,null,null,"Name of Fund",":",{"$f":" FundName","v":"KFH iCash Investment Fund"}]
[null,null,null,"Quarter Ended",":",{"$f":"TEXT(EOM,\"Mmmm yyyy\")","v":"August 2013"}]
[null,null,"2007-06-12","Fund's NAV (RM'000)",":",{"$f":" InPortfolio!AM2/1000","v":0},null,null,null,null,"qAssetClass","(blank)"]
[null,null,null,"Name of Issuer","Type of Investment","Value of Fund's Investments","Value of Fund's Holding over NAV"]
[null,null,null,null,null,"(RM'000)","(%)",null,null,null,null,null,"Values"]
[null,null,null,{"$f":"IF(K15=\"\",\"\",K15)","v":""},"","","",null,null,null,"Row Labels","StockTypeDesc","Sum of MarketValueFC","Sum of fPercNAV"]
[null,null,null,"","","",""]
[null,null,null,"","","",""]
[null,null,null,{"$f":"IF(K18=\"\",\"\",K18)","v":""},"","",""]
[null,null,null,"","","",{"$f":"IF(N19=\"\",\"\",N19)","v":""}]

{"sheet":"ETF7","index":12,"n_rows":18,"n_cols":14,"rows_kept":18,"cut":false,"hidden":false,"merged":[[1,3,1,6],[4,3,4,6],[2,3,2,6]]}
[null,null,null,null,null,null,"ETF 7"]
[null,null,null,"SECURITIES COMMISSION"]
[null,null,null,"ETF RETURNS"]
[]
[null,null,null,{"$f":"UPPER(\"Investments in Units/Shares of a Single Collective Investment Scheme\")","v":"INVESTMENTS IN UNITS/SHARES OF A SINGLE COLLECTIVE INVESTMENT SCHEME"}]
[{"$f":"EDATE(EOM,0)","v":"2013-08-31"}]
[]
[null,null,null,"Management Company ",":",{"$f":"CompanyName","v":"i-VCAP Management Sdn Bhd"}]
[null,null,null,"Name of Fund ",":",{"$f":"FundName","v":"KFH iCash Investment Fund"}]
[null,null,null,"Quarter Ended",":",{"$f":"TEXT(EOM,\"mmmm yyyy\")","v":"August 2013"}]
[null,null,"2007-06-12","Fund NAV (RM'000)",":",{"$f":"InPortfolio!AM2/1000","v":0},null,null,null,null,"qAssetClass","(Multiple Items)"]
[null,null,null,"Name of Collective Investment Scheme","Type of Investment","Value of Fund's Investments","Value of Fund's holding over NAV"]
[null,null,null,null,null,"(RM)","(%)",null,null,null,null,null,"Values"]
[null,null,null,{"$f":"IF(K15=\"\",\"\",K15)","v":""},"","","",null,null,null,"Row Labels","StockTypeDesc","Sum of MarketValueFC","Sum of fPercNAV"]
[null,null,null,"","","",""]
[null,null,null,"","","",""]
[null,null,null,"","","",""]
[null,null,null,"","","",""]

{"sheet":"ETF8","index":13,"n_rows":19,"n_cols":13,"rows_kept":19,"cut":false,"hidden":false,"merged":[[1,3,1,5],[4,3,4,5],[2,3,2,5]]}
[null,null,null,null,null,"ETF 8"]
[null,null,null,"SECURITIES COMMISSION"]
[null,null,null,"ETF RETURNS"]
[]
[null,null,null,{"$f":"UPPER(\"Investment in Structured Products of a Single Counter-Party\")","v":"INVESTMENT IN STRUCTURED PRODUCTS OF A SINGLE COUNTER-PARTY"}]
[{"$f":"EDATE(EOM,0)","v":"2013-08-31"}]
[]
[null,null,null,"Management Company ",{"$f":" CompanyName","v":"i-VCAP Management Sdn Bhd"}]
[null,null,null,"Name of Fund",{"$f":"FundName","v":"KFH iCash Investment Fund"}]
[null,null,null,"Quarter Ended",{"$f":"TEXT(EOM,\"mmmm yyyy\")","v":"August 2013"}]
[null,null,"2007-06-12","Fund NAV (RM'000)",{"$f":"InPortfolio!AM2/1000","v":0}]
[null,null,null,"Name of Issuer","Value of Fund's Investments","Value of holding over NAV",null,null,null,"qAssetClass","(blank)"]
[null,null,null,null,"(RM)","(%)"]
[null,null,null,{"$f":"IF(J16=\"\",\"\",J16)","v":""},{"$f":"IF(L16=\"\",\"\",L16)","v":""},"",null,null,null,null,null,"Values"]
[null,null,null,{"$f":"IF(J17=\"\",\"\",J17)","v":""},"","",null,null,null,"Row Labels","Rating","Sum of MarketValueFC","Sum of fPercNAV"]
[null,null,null,{"$f":"IF(J18=\"\",\"\",J18)","v":""},"",""]
[null,null,null,{"$f":"IF(J19=\"\",\"\",J19)","v":""},"",""]
[null,null,null,{"$f":"IF(J20=\"\",\"\",J20)","v":""},"",""]
[null,null,null,{"$f":"IF(J20=\"\",\"\",J20)","v":""},{"$f":"IF(L20=\"\",\"\",L20)","v":""}]

{"sheet":"InPort","index":14,"n_rows":1,"n_cols":9,"rows_kept":1,"cut":false,"hidden":true,"merged":[]}
["qAssetClass","Class","MarketValueFC","IssuerName","IssuerGrpName","StockTypeDesc","fPercNAV","fPercNAV","fPercNAV"]

{"sheet":"InPos","index":15,"n_rows":2,"n_cols":82,"rows_kept":2,"cut":false,"hidden":true,"merged":[]}
["qAssetClass","qStockCode","StockDesc","UnitFaceValue","CostSC","CostFC","MarketValueSC","MarketValueFC","SG1","MaturityDate","ExchangeCountry","IssuerName","IssuerGrpName","VetoValues","IssuedSize","Coupon","MarketValue","RatingUsed","Description","StockTypeDesc","StockName","StockCountry","List","qBondType","Class","PercHolding",{"$f":"IF(LEN(L1)>5,L1& \" - (\" & B1& \") \",\"\")","v":"IssuerName - (qStockCode) "},{"$f":"L1&I1","v":"IssuerNameSG1"},{"$f":"M1&L1&B1","v":"IssuerGrpNameIssuerNameqStockCode"},{"$f":"IF(AND(COUNTIF($M:$M,M1)>0,A1<>\"CSH\",M1<>\"N/A\"),M1,\"\")","v":"IssuerGrpName"},{"$f":"A1&L1","v":"qAssetClassIssuerName"},{"$f":"B1&M1","v":"qStockCodeIssuerGrpName"},{"$f":"C1&N1","v":"StockDescVetoValues"},"UnitFaceValueIssuedSize","CostSCCoupon","CostFCMarketValue","MarketValueSCRatingUsed","MarketValueFCDescription","SG1StockTypeDesc","MaturityDateStockName","ExchangeCountryStockCountry","IssuerNameList","IssuerGrpNameqBondType","VetoValuesClass","IssuedSizePercHolding","CouponIssuerName - (qStockCode) ","MarketValueIssuerNameSG1","RatingUsedIssuerGrpNameIssuerNameqStockCode","DescriptionIssuerGrpName","StockTypeDescqAssetClassIssuerName","StockNameqStockCodeIssuerGrpName","StockCountryStockDescVetoValues","ListUnitFaceValueIssuedSize","qBondTypeCostSCCoupon","ClassCostFCMarketValue","PercHoldingMarketValueSCRatingUsed","IssuerName - (qStockCode) MarketValueFCDescription","IssuerNameSG1SG1StockTypeDesc","IssuerGrpNameIssuerNameqStockCodeMaturityDateStockName","IssuerGrpNameExchangeCountryStockCountry","qAssetClassIssuerNameIssuerNameList","qStockCodeIssuerGrpNameIssuerGrpNameqBondType","StockDescVetoValuesVetoValuesClass","UnitFaceValueIssuedSizeIssuedSizePercHolding","CostSCCouponCouponIssuerName - (qStockCode) ","CostFCMarketValueMarketValueIssuerNameSG1","MarketValueSCRatingUsedRatingUsedIssuerGrpNameIssuerNameqStockCode","MarketValueFCDescriptionDescriptionIssuerGrpName","SG1StockTypeDescStockTypeDescqAssetClassIssuerName","MaturityDateStockNameStockNameqStockCodeIssuerGrpName","ExchangeCountryStockCountryStockCountryStockDescVetoValues","IssuerNameListListUnitFaceValueIssuedSize","IssuerGrpNameqBondTypeqBondTypeCostSCCoupon","VetoValuesClassClassCostFCMarketValue","IssuedSizePercHoldingPercHoldingMarketValueSCRatingUsed","CouponIssuerName - (qStockCode) IssuerName - (qStockCode) MarketValueFCDescription","MarketValueIssuerNameSG1IssuerNameSG1SG1StockTypeDesc","RatingUsedIssuerGrpNameIssuerNameqStockCodeIssuerGrpNameIssuerNameqStockCodeMaturityDateStockName","DescriptionIssuerGrpNameIssuerGrpNameExchangeCountryStockCountry","StockTypeDescqAssetClassIssuerNameqAssetClassIssuerNameIssuerNameList","StockNameqStockCodeIssuerGrpNameqStockCodeIssuerGrpNameIssuerGrpNameqBondType","StockCountryStockDescVetoValuesStockDescVetoValuesVetoValuesClass"]
["CIS","B1S9KF0","FIRST SHIP LEASE TRUST",889000,1098156.06,2514600.2200000002,100457,260042.99,"FSC",401769,"Singapore","FIRST SHIP LEASE TRUST","FIRSTSHIP","",654665100,null,260,null,"Collective Investment Scheme","Real Estate Investment Trust","FIRST SHIP LEASE TRUST","Singapore","Listed",null,"Collective Investment",0.13579462231910636]

{"sheet":"InTran","index":16,"n_rows":3,"n_cols":45,"rows_kept":3,"cut":false,"hidden":true,"merged":[]}
["CPName","qTrnCode","SCNetProceed","SCNetProceed","SCNetProceed","SCNetProceed","SCNetProceed","SCNetProceed","SCNetProceed","SCNetProceed","SCNetProceed","SCNetProceed","SCNetProceed","SCNetProceed","SCNetProceed","SCNetProceed","SCNetProceed","SCNetProceed","SCNetProceed","SCNetProceed","SCNetProceed","SCNetProceed","SCNetProceed","SCNetProceed","SCNetProceed","SCNetProceed","SCNetProceed","SCNetProceed","SCNetProceed","SCNetProceed","SCNetProceed","SCNetProceed","SCNetProceed","SCNetProceed","SCNetProceed","SCNetProceed","SCNetProceed","SCNetProceed","SCNetProceed","SCNetProceed","SCNetProceed","SCNetProceed","SCNetProceed","SCNetProceed","SCNetProceed"]
[null,null,null,"SCNetProceed","SCNetProceed","SCNetProceed","SCNetProceed","SCNetProceed","SCNetProceed","SCNetProceed","SCNetProceed"]
[null,null,null,"SCNetProceed","SCNetProceed","SCNetProceed","SCNetProceed","SCNetProceed","SCNetProceed","SCNetProceed","SCNetProceed"]

{"sheet":"InPricing","index":17,"n_rows":17,"n_cols":5,"rows_kept":17,"cut":false,"hidden":true,"merged":[]}
[]
["qValDate","NAV","BuyPrice","SellPrice","ValPrice"]
["2011-05-31",1308538.44,0.995,0.995,0.99501634000000005]
["2011-06-30",1284497.43,0.99980000000000002,0.99980000000000002,0.99980714000000004]
["2011-07-31",1280452.28,1.0033000000000001,1.0033000000000001,1.0033095400000001]
["2011-08-31",1172482.0900000001,0.91859999999999997,0.91859999999999997,0.91863185999999997]
["2011-09-30",1096914.04,0.85940000000000005,0.85940000000000005,0.85935130000000004]
["2011-10-31",1176540.95,0.91790000000000005,0.91790000000000005,0.91791716999999995]
["2011-11-30",1144090.6499999999,0.91900000000000004,0.91900000000000004,0.91903858000000005]
["2011-12-31",1211136.46,0.97119999999999995,0.97119999999999995,0.97124076999999998]
["2012-01-31",1216455.26,0.97699999999999998,0.97699999999999998,0.97703039999999997]
["2012-02-29",1219432.1399999999,0.99339999999999995,0.99339999999999995,0.99335890000000004]
["2012-03-31",726032.43,0.99719999999999998,0.99719999999999998,0.99723850999999997]
["2012-04-30",1125325.6299999999,0.99890000000000001,0.99890000000000001,0.99894004999999997]
["2012-05-31",1138795.27,1.0108999999999999,1.0108999999999999,1.01089691]
["2012-06-30",1137873.71,1.0265,1.0265,1.0265001199999999]
["2012-07-17",1162844.82,1.0569999999999999,1.0569999999999999,1.05700975]

{"sheet":"InIndex","index":18,"n_rows":17,"n_cols":3,"rows_kept":17,"cut":false,"hidden":true,"merged":[]}
[]
["ValueDate","qIndexBenchMark","Indices"]
["2011-05-31","KLCI",1558.29]
["2011-06-30","KLCI",1579.07]
["2011-07-31","KLCI",1548.81]
["2011-08-31","KLCI",1447.27]
["2011-09-30","KLCI",1387.13]
["2011-10-31","KLCI",1491.89]
["2011-11-30","KLCI",1472.1]
["2011-12-31","KLCI",1530.73]
["2012-01-31","KLCI",1521.29]
["2012-02-29","KLCI",1569.65]
["2012-03-31","KLCI",1596.33]
["2012-04-30","KLCI",1570.61]
["2012-05-31","KLCI",1580.67]
["2012-06-30","KLCI",1599.15]
["2012-07-17","KLCI",1639.15]

{"sheet":"InTWRR","index":19,"n_rows":3,"n_cols":6,"rows_kept":3,"cut":false,"hidden":true,"merged":[]}
[]
["qFundCode","ValueDate","LastValueDate","NAV","LVNav","TWRR"]
["HLGTSSF",40724,40723,1284497.43,1277148.17,5.7338295946083306E-3]

{"sheet":"InFund","index":20,"n_rows":4,"n_cols":8,"rows_kept":4,"cut":false,"hidden":true,"merged":[]}
[]
["qFundCode","FundName","FinanceYrStart","FinanceYrEnd","qIndexBenchMark","FundCurrency","FundPrefix","CPName"]
["KFHGSF","KFH Global Sukuk Fund","2013-02-04","2013-06-30","DJSUKUK INDEX","USD","KGSF","CITI TRUSTEE BERHAD"]
["KFHICASH","KFH iCash Investment Fund","2013-08-23","2013-12-31","KFHGIA","MYR","KICASH","AMANAHRAYA TRUSTEES BERHAD"]

{"sheet":"InTranReg","index":21,"n_rows":4,"n_cols":6,"rows_kept":4,"cut":false,"hidden":true,"merged":[]}
["qAgentType","GrossProceed","Units","qTrnCode","ValueDate","qFundCode"]
["N/A",81500,"2123-02-19","UP",41509,"KFHICASH"]
["N/A",0,"00:00:00","UP",41514,"KFHICASH"]
["N/A",-81529.421499999997,-81500,"UR",41513,"KFHICASH"]

{"sheet":"InAccByFundHst","index":22,"n_rows":3,"n_cols":6,"rows_kept":3,"cut":false,"hidden":true,"merged":[]}
["number","AccountCAT","unit","amt","category","qFundCode"]
[1,"IntRLP","00:00:00","00:00:00","IntRLP","KFHICASH"]
[1,"IUTAInst","00:00:00",-29.421500000000002,"IUTAInst","KFHICASH"]